bitfinex-derivatives/quotes_SOLF0:USTF0_20251208
["timestamp","ask_amount","ask_price","bid_price","bid_amount"]
[1765159494950,0.0505016,133.33,133.31,3.12476838]
[1765159495541,6.8002016,133.33,133.31,3.12476838]
[1765159496148,0.0505016,133.33,133.31,3.12476838]
[1765159500253,9.7102016,133.33,133.31,0.05476838]
[1765159500446,9.7102016,133.33,133.24,64.34]
[1765159500447,2.91,133.31,133.26,3.21]
[1765159500849,2.91,133.3,133.24,3.21]
[1765159501148,2.91,133.29,133.24,3.21]
[1765159501354,0.05365148,133.28,133.26,3.21]
[1765159502955,2.96365148,133.28,133.25,0.05148882]
[1765159503346,2.91,133.27,133.25,0.05148882]
[1765159504244,2.91,133.26,133.25,0.05148882]
[1765159506150,9.6635,133.26,133.21,3.21]
[1765159506354,2.91,133.25,133.18,67.57]
[1765159506552,2.91,133.23,133.18,3.21]
[1765159507155,2.91,133.22,133.18,3.21]
[1765159507347,0.05547382,133.22,133.19,3.26368635]
[1765159508255,2.91,133.27,133.2,3.21]
[1765159509256,9.6629,133.27,133.21,3.21]
[1765159509458,0.05737547,133.25,133.23,3.25932742]
[1765159513763,0.05737547,133.25,133.24,3.21]
[1765159515063,2.97,133.3,133.24,3.21]
[1765159515569,3.03,133.28,133.22,3.21]
[1765159516169,3.07728383,133.26,133.24,0.05325221]
[1765159516774,9.83058383,133.26,133.24,0.05325221]
[1765159516970,6.80058383,133.26,133.24,3.26325221]
[1765159517174,6.80058383,133.26,133.24,0.05325221]
[1765159517472,9.83058383,133.26,133.24,0.05325221]
[1765159520572,3.03,133.25,133.19,3.39]
[1765159520779,3.03,133.23,133.19,3.39]
[1765159521671,0.04727933,133.22,133.2,0.05195668]
[1765159521874,0.04727933,133.22,133.2,3.44195668]
[1765159523570,0.04727933,133.22,133.2,6.58839579]
[1765159523766,0.04727933,133.22,133.21,3.39]
[1765159525681,3.07727933,133.22,133.2,0.05195668]
[1765159527384,0.04727933,133.22,133.2,3.44195668]
[1765159530181,0.04727933,133.22,133.2,0.05195668]
[1765159530778,0.04727933,133.22,133.2,3.44195668]
[1765159533381,6.7529,133.27,133.21,3.39]
[1765159533687,3.08,133.27,133.23,3.39]
[1765159534374,0.05747438,133.26,133.24,3.44123781]
[1765159544690,0.05747438,133.26,133.24,5.45843022]
[1765159544895,0.05747438,133.26,133.25,3.39]
[1765159550999,0.05747438,133.26,133.24,0.05123781]
[1765159551000,3.13747438,133.26,133.24,0.05123781]
[1765159551493,0.05747438,133.26,133.24,3.30123781]
[1765159555810,3.13747438,133.26,133.24,0.05123781]
[1765159557709,3.13747438,133.26,133.24,3.30123781]
[1765159558103,9.89067438,133.26,133.24,3.30123781]
[1765159558304,9.89067438,133.26,133.24,0.05123781]
[1765159559007,6.81067438,133.26,133.24,3.30123781]
[1765159561811,0.05747438,133.26,133.24,3.30123781]
[1765159562004,105.0127,133.31,133.24,3.30123781]
[1765159562005,10.07264892,133.32,133.25,3.25]
[1765159562208,5.68197331,133.31,133.28,3.25]
[1765159562405,18.89924133,133.34,133.28,3.25]
[1765159562604,5.67977156,133.33,133.3,3.25]
[1765159562811,5.67977156,133.32,133.3,3.25]
[1765159563011,6.79906332,133.32,133.3,3.30182391]
[1765159564508,0.04886332,133.32,133.3,3.30182391]
[1765159564710,3.18886332,133.32,133.3,3.30182391]
[1765159565908,3.14,133.31,133.25,5.26719241]
[1765159566115,3.14,133.29,133.25,5.26719241]
[1765159567113,0.04883604,133.28,133.26,3.2975316]
[1765159567920,0.04883604,133.28,133.27,5.26719241]
[1765159568131,5.67461169,133.32,133.28,3.25]
[1765159568312,9.89,133.33,133.28,3.25]
[1765159568507,3.19,133.32,133.28,3.25]
[1765159568718,8.86380949,133.31,133.25,5.26719241]
[1765159568913,3.19,133.29,133.25,3.25]
[1765159569112,3.19,133.27,133.26,0.05320968]
[1765159571019,9.99464134,133.28,133.26,0.05320968]
[1765159571220,3.19,133.27,133.26,0.05320968]
[1765159571822,6.7532,133.26,133.23,5.26719241]
[1765159572018,9.9432,133.26,133.23,5.26719241]
[1765159572928,9.9432,133.26,133.23,5.31813468]
[1765159574529,3.19,133.25,133.23,0.05094227]
[1765159574724,3.19,133.24,133.23,0.05094227]
[1765159576311,8.82827272,133.25,133.23,0.05094227]
[1765159576525,12.01827272,133.25,133.23,0.05094227]
[1765159578632,10.00108031,133.25,133.23,0.05094227]
[1765159579833,3.24728031,133.25,133.23,0.05094227]
[1765159582428,0.05728031,133.25,133.23,3.33094227]
[1765159585325,2.01719241,133.29,133.24,3.28]
[1765159585530,9.9314,133.3,133.24,3.28]
[1765159585729,8.86167444,133.29,133.24,3.28]
[1765159585924,3.18,133.29,133.25,3.28]
[1765159586332,0.05593419,133.28,133.26,0.04782039]
[1765159586536,3.23593419,133.28,133.26,0.04782039]
[1765159587527,9.98823419,133.28,133.26,0.04782039]
[1765159587840,3.18,133.27,133.26,0.04782039]
[1765159589232,5.19719241,133.27,133.26,0.04782039]
[1765159590731,10.86669728,133.27,133.26,0.04782039]
[1765159595148,10.86669728,133.27,133.21,2.01719241]
[1765159595149,3.13,133.24,133.21,3.28]
[1765159595345,3.13,133.22,133.17,5.29719241]
[1765159595550,3.13,133.19,133.15,5.29719241]
[1765159595748,3.13,133.18,133.13,5.29719241]
[1765159595943,3.13,133.16,133.13,3.28]
[1765159596150,9.94372307,133.16,133.13,0.05521312]
[1765159596345,5.14719241,133.15,133.13,0.05521312]
[1765159596649,3.13,133.14,133.13,0.05521312]
[1765159598552,0.05512307,133.16,133.13,3.33521312]
[1765159598754,0.05512307,133.16,133.14,3.28]
[1765159600656,0.05512307,133.16,133.15,5.29719241]
[1765159601153,8.77259241,133.22,133.16,3.28]
[1765159601356,3.13,133.2,133.16,3.28]
[1765159602147,0.05545296,133.19,133.17,3.3286994]
[1765159607364,3.18545296,133.19,133.17,0.0486994]
[1765159607759,0.05545296,133.19,133.17,3.3286994]
[1765159609564,3.14545296,133.19,133.17,0.0486994]
[1765159609861,0.05545296,133.19,133.17,3.2886994]
[1765159617466,105.0528,133.26,133.19,3.24]
[1765159617665,64.4,133.28,133.21,3.24]
[1765159617967,3.19,133.27,133.23,3.24]
[1765159618573,0.05458451,133.26,133.24,3.29478025]
[1765159618966,3.24458451,133.26,133.24,0.05478025]
[1765159619568,9.99788451,133.26,133.24,0.05478025]
[1765159619871,3.19,133.25,133.19,3.24]
[1765159620371,3.19,133.23,133.16,6.39603113]
[1765159620673,3.19,133.23,133.16,3.24]
[1765159620872,3.19,133.2,133.18,0.04795782]
[1765159623369,0.05490205,133.21,133.18,3.28795782]
[1765159623577,0.05490205,133.21,133.18,6.44398895]
[1765159623875,0.05490205,133.21,133.19,3.24]
[1765159624771,9.9434,133.26,133.21,3.24]
[1765159625166,3.19,133.26,133.21,3.24]
[1765159625367,6.7524,133.28,133.22,3.24]
[1765159625774,0.05474106,133.26,133.24,3.28902977]
[1765159627978,3.28474106,133.26,133.24,0.04902977]
[1765159629773,10.03804106,133.26,133.24,0.04902977]
[1765159629975,3.19,133.24,133.18,3.24]
[1765159630281,9.9455,133.22,133.16,3.24]
[1765159631273,0.05745988,133.2,133.18,0.05178304]
[1765159631578,0.05745988,133.2,133.18,3.29178304]
[1765159633478,6.81385988,133.2,133.18,3.29178304]
[1765159634466,3.19,133.19,133.18,0.05178304]
[1765159634666,3.19,133.18,133.13,3.24]
[1765159635567,0.053557,133.17,133.14,3.29519562]
[1765159636876,0.053557,133.17,133.14,6.45122675]
[1765159637069,0.003557,133.17,133.15,3.24]
[1765159638585,0.003557,133.17,133.16,3.14]
[1765159639985,6.96757789,133.25,133.17,3.14]
[1765159640173,5.67087875,133.24,133.19,3.14]
[1765159640373,3.09,133.26,133.21,3.14]
[1765159640781,6.7524,133.28,133.21,3.14]
[1765159640975,0.05167803,133.26,133.23,3.19514716]
[1765159642172,0.05167803,133.26,133.23,9.94954716]
[1765159642383,0.05167803,133.26,133.24,3.14]
[1765159643577,0.05167803,133.26,133.25,3.14]
[1765159644588,5.66585147,133.31,133.26,3.14]
[1765159644886,3.09,133.32,133.26,3.14]
[1765159645185,9.8394,133.34,133.26,3.14]
[1765159645381,5.66166137,133.33,133.27,3.14]
[1765159645590,0.04734657,133.31,133.29,3.19757595]
[1765159651391,3.13734657,133.31,133.29,0.05757595]
[1765159652692,9.88824657,133.31,133.29,0.05757595]
[1765159654195,3.09,133.3,133.26,3.14]
[1765159654396,3.09,133.29,133.26,3.14]
[1765159654602,0.04734657,133.31,133.26,3.14]
[1765159654897,3.13734657,133.31,133.26,3.14]
[1765159655299,0.04734657,133.31,133.28,3.14]
[1765159655495,0.05541961,133.31,133.28,3.14]
[1765159656888,0.05541961,133.31,133.27,0.05645089]
[1765159656889,3.14541961,133.31,133.27,0.05645089]
[1765159658193,3.09,133.29,133.27,0.05645089]
[1765159662597,6.752,133.29,133.27,0.05645089]
[1765159662797,3.09,133.28,133.27,0.05645089]
[1765159665300,3.09,133.26,133.21,3.14]
[1765159666087,105.0285,133.29,133.24,3.14]
[1765159666088,0.04790678,133.25,133.24,3.14]
[1765159666286,3.09,133.3,133.24,3.14]
[1765159666499,3.09,133.3,133.22,3.14]
[1765159667096,3.09,133.3,133.24,3.14]
[1765159667297,0.05187674,133.27,133.25,3.19047081]
[1765159674109,3.12,133.26,133.25,0.05047081]
[1765159674415,3.12,133.26,133.21,3.09]
[1765159674914,3.12,133.25,133.21,3.09]
[1765159675408,0.05675181,133.24,133.22,3.14501539]
[1765159675907,3.17675181,133.24,133.22,0.05501539]
[1765159677218,0.05675181,133.24,133.22,3.14501539]
[1765159681605,5.67048848,133.28,133.22,3.14501539]
[1765159681909,3.12,133.31,133.23,3.09]
[1765159682310,5.67188478,133.3,133.23,3.09]
[1765159682515,3.12,133.31,133.23,3.09]
[1765159682707,8.79188478,133.3,133.26,3.09]
[1765159682910,0.05394613,133.29,133.27,3.13933543]
[1765159684810,3.38394613,133.29,133.27,0.04933543]
[1765159686215,0.05394613,133.29,133.27,3.34933543]
[1765159686817,0.05394613,133.29,133.27,5.36628953]
[1765159687020,0.05394613,133.29,133.28,3.3]
[1765159690118,3.38394613,133.29,133.27,0.04933543]
[1765159690321,3.33,133.28,133.27,0.04933543]
[1765159690617,0.05394613,133.29,133.27,0.04933543]
[1765159690821,0.05394613,133.29,133.27,3.34933543]
[1765159690822,3.38394613,133.29,133.27,3.34933543]
[1765159691319,3.38394613,133.29,133.27,0.04933543]
[1765159691527,10.13594613,133.29,133.27,0.04933543]
[1765159692018,3.33,133.28,133.27,0.04933543]
[1765159692518,10.13594613,133.29,133.27,0.04933543]
[1765159692719,6.80594613,133.29,133.27,3.34933543]
[1765159693018,0.05394613,133.29,133.27,3.34933543]
[1765159693316,0.05394613,133.29,133.28,3.3]
[1765159697416,6.7489,133.35,133.28,3.3]
[1765159697719,179.61127789,133.36,133.28,3.3]
[1765159697720,5.6819691,133.34,133.28,3.3]
[1765159697914,3.33,133.36,133.28,3.3]
[1765159698111,149.03941641,133.37,133.31,3.14]
[1765159698112,155.78721641,133.37,133.31,3.14]
[1765159698419,155.78721641,133.37,133.33,3.1936581]
[1765159698420,0.05109393,133.35,133.33,3.1936581]
[1765159701930,3.31109393,133.35,133.33,0.0536581]
[1765159702434,3.26,133.33,133.28,3.14]
[1765159703336,0.05370366,133.32,133.29,3.18780029]
[1765159704825,3.26,133.37,133.29,3.18780029]
[1765159705027,3.26,133.37,133.3,3.14]
[1765159705329,3.26,133.37,133.31,3.14]
[1765159705729,0.05415023,133.35,133.34,3.14]
[1765159709740,3.31415023,133.35,133.33,0.05093651]
[1765159711543,10.06295023,133.35,133.33,0.05093651]
[1765159711846,3.26,133.34,133.33,0.05093651]
[1765159715055,0.05415023,133.35,133.33,3.19093651]
[1765159715537,10.0063,133.4,133.34,3.14]
[1765159716145,3.26,133.43,133.34,3.14]
[1765159716650,0.05730778,133.4,133.37,3.18836197]
[1765159719952,3.26,133.46,133.37,3.18836197]
[1765159720153,10.0033,133.46,133.37,3.14]
[1765159720347,10.0033,133.46,133.38,3.14]
[1765159721047,0.05705596,133.43,133.41,3.19450564]
[1765159723057,3.31705596,133.43,133.41,0.05450564]
[1765159723254,0.05705596,133.43,133.41,3.19450564]
[1765159724343,0.05705596,133.43,133.41,0.05450564]
[1765159724657,3.31705596,133.43,133.41,0.05450564]
[1765159726350,3.26,133.42,133.41,0.05450564]
[1765159728952,4.76,133.42,133.41,0.05450564]
[1765159729256,67.58,133.42,133.41,0.05450564]
[1765159729946,3.26,133.42,133.41,0.05450564]
[1765159732450,6.80185596,133.43,133.41,0.05450564]
[1765159732451,0.05705596,133.43,133.41,0.05450564]
[1765159732956,0.05705596,133.43,133.41,3.13450564]
[1765159736646,6.7432,133.46,133.41,3.13450564]
[1765159737045,9.9732,133.46,133.41,3.13450564]
[1765159737447,3.23,133.45,133.41,3.13450564]
[1765159739264,104.8627,133.5,133.41,3.13450564]
[1765159739464,6.7412,133.5,133.44,3.12913202]
[1765159739666,9.9712,133.5,133.44,3.12913202]
[1765159740259,9.9702,133.52,133.45,3.08]
[1765159740466,3.23,133.54,133.48,3.08]
[1765159740867,169.1244,133.55,133.48,3.08]
[1765159740868,3.23,133.52,133.48,3.08]
[1765159741061,3.23,133.52,133.49,3.12772083]
[1765159741262,9.9697,133.53,133.49,3.12772083]
[1765159742375,9.9703,133.52,133.49,0.04772083]
[1765159742571,3.23,133.51,133.49,0.04772083]
[1765159742767,108.0826,133.51,133.49,0.04772083]
[1765159742972,3.23,133.5,133.49,0.04772083]
[1765159743471,67.53,133.5,133.49,0.04772083]
[1765159743658,14.13751676,133.58,133.51,3.08]
[1765159743860,3.32,133.56,133.53,0.04789612]
[1765159744782,3.32,133.54,133.53,0.04789612]
[1765159746672,6.7388,133.55,133.53,0.04789612]
[1765159746878,3.32,133.56,133.53,0.04789612]
[1765159747079,64.46,133.58,133.53,3.34789612]
[1765159747280,3.32,133.57,133.53,3.34789612]
[1765159747988,69.9728939,133.59,133.53,3.34789612]
[1765159748185,64.44,133.59,133.53,3.34789612]
[1765159748488,67.76,133.59,133.53,3.34789612]
[1765159748986,3.32,133.57,133.53,0.04789612]
[1765159749177,3.32,133.56,133.53,0.04789612]
[1765159750582,3.32,133.55,133.53,0.04789612]
[1765159751485,10.0587,133.55,133.53,0.04789612]
[1765159751988,3.32,133.52,133.47,3.3]
[1765159752990,0.04763368,133.51,133.49,3.3]
[1765159753998,3.36763368,133.51,133.48,0.05417505]
[1765159754188,3.36763368,133.51,133.48,3.35417505]
[1765159754494,3.36763368,133.51,133.48,0.05417505]
[1765159755394,3.36763368,133.51,133.48,3.35417505]
[1765159755689,0.04763368,133.51,133.48,3.35417505]
[1765159757595,3.36763368,133.51,133.48,0.05417505]
[1765159758489,3.29,133.49,133.48,0.05417505]
[1765159759793,3.29,133.49,133.44,3.3]
[1765159760100,3.29,133.48,133.43,9.9542]
[1765159760998,3.34695393,133.47,133.44,0.05178568]
[1765159761182,0.05695393,133.47,133.44,3.26178568]
[1765159762097,3.34695393,133.47,133.44,0.05178568]
[1765159764603,3.29,133.46,133.44,0.05178568]
[1765159766102,10.08965393,133.47,133.44,0.05178568]
[1765159766402,3.34695393,133.47,133.44,3.26178568]
[1765159766709,3.34695393,133.47,133.44,0.05178568]
[1765159768107,10.08965393,133.47,133.44,0.05178568]
[1765159768300,3.29,133.46,133.44,0.05178568]
[1765159768693,10.0332,133.46,133.44,0.05178568]
[1765159768894,3.29,133.45,133.44,0.05178568]
[1765159770313,3.29,133.43,133.38,3.21]
[1765159771006,3.29,133.42,133.38,3.21]
[1765159771307,3.34512944,133.41,133.39,0.05427503]
[1765159771509,10.09092944,133.41,133.39,0.05427503]
[1765159771806,3.29,133.4,133.39,0.05427503]
[1765159776910,3.29,133.39,133.34,3.21]
[1765159777611,3.29,133.38,133.34,3.21]
[1765159777815,3.29,133.36,133.35,0.05408035]
[1765159778013,3.29,133.35,133.29,6.35488394]
[1765159778208,3.29,133.35,133.29,3.21]
[1765159778612,3.29,133.34,133.29,3.21]
[1765159778812,3.29,133.34,133.26,3.21]
[1765159779111,3.34294281,133.31,133.29,0.05139908]
[1765159780516,3.34294281,133.31,133.29,3.26139908]
[1765159780517,0.05294281,133.31,133.29,3.26139908]
[1765159781506,0.05294281,133.31,133.29,10.01259908]
[1765159782410,3.34294281,133.31,133.29,0.05139908]
[1765159785313,3.29,133.3,133.29,0.05139908]
[1765159785508,3.29,133.29,133.24,9.9639]
[1765159786114,3.29,133.29,133.24,3.21]
[1765159786515,3.33813268,133.28,133.25,0.04917532]
[1765159787319,0.04813268,133.28,133.25,3.25917532]
[1765159789423,3.42813268,133.28,133.25,0.04917532]
[1765159791422,3.42813268,133.28,133.25,3.24917532]
[1765159792121,3.38,133.27,133.25,0.04917532]
[1765159792717,3.42813268,133.28,133.25,3.24917532]
[1765159793922,3.42813268,133.28,133.25,0.04917532]
[1765159795518,10.18043268,133.28,133.25,0.04917532]
[1765159795724,3.38,133.27,133.25,0.04917532]
[1765159797621,10.1328,133.27,133.25,0.04917532]
[1765159799430,3.38,133.26,133.25,0.04917532]
[1765159800528,3.38,133.25,133.19,3.2]
[1765159800724,3.38,133.23,133.18,2.01895003]
[1765159800929,3.38,133.23,133.11,105.1656]
[1765159800930,3.38,133.18,133.16,2.01895003]
[1765159801125,3.38,133.18,133.13,3.2]
[1765159801331,67.86,133.18,133.11,6.7606]
[1765159801533,3.43355996,133.16,133.13,2.07193336]
[1765159801939,3.43355996,133.16,133.13,5.27193336]
[1765159802237,0.05355996,133.16,133.14,3.2]
[1765159803731,0.05355996,133.16,133.14,8.61069578]
[1765159803932,0.05355996,133.16,133.15,3.09]
[1765159804232,6.7548,133.23,133.17,3.09]
[1765159804432,67.64,133.24,133.17,3.09]
[1765159804633,3.14,133.24,133.19,3.09]
[1765159805035,0.05601464,133.23,133.2,3.13991985]
[1765159805833,0.05601464,133.23,133.21,3.09]
[1765159806943,0.05601464,133.23,133.21,9.8453]
[1765159807443,0.05601464,133.23,133.22,3.09]
[1765159807643,0.05601464,133.23,133.2,8.55061563]
[1765159807844,0.05601464,133.23,133.21,3.09]
[1765159808553,3.19601464,133.23,133.2,0.04991985]
[1765159809150,3.19601464,133.23,133.2,3.13991985]
[1765159809539,0.05601464,133.23,133.2,3.13991985]
[1765159811047,0.05601464,133.23,133.2,9.89581985]
[1765159811453,0.05601464,133.23,133.21,3.09]
[1765159813443,0.05601464,133.23,133.22,3.09]
[1765159813652,3.14,133.29,133.22,3.09]
[1765159814449,3.14,133.29,133.23,6.7543]
[1765159814644,0.04755197,133.27,133.25,0.05240702]
[1765159816250,3.18755197,133.27,133.25,0.05240702]
[1765159821049,0.04755197,133.27,133.25,10.00560702]
[1765159821352,3.37,133.31,133.27,3.2]
[1765159821560,3.37,133.29,133.25,3.2]
[1765159822257,0.05130439,133.28,133.26,3.25656921]
[1765159823052,6.89078388,133.33,133.27,3.2]
[1765159823245,5.76972756,133.32,133.28,3.2]
[1765159823448,5.76972756,133.31,133.28,3.2]
[1765159823649,10.26078388,133.34,133.28,3.2]
[1765159823849,9.13877122,133.33,133.28,3.2]
[1765159824055,3.37,133.31,133.28,3.2]
[1765159824256,3.37,133.31,133.29,0.05640401]
[1765159826358,9.13928392,133.3,133.29,0.05640401]
[1765159828161,3.37,133.3,133.29,0.05640401]
[1765159828653,10.1215,133.3,133.23,76.64499578]
[1765159828855,3.37,133.28,133.23,76.64499578]
[1765159829054,3.37,133.28,133.23,6.7543]
[1765159829460,3.37,133.28,133.23,9.9543]
[1765159829755,0.05282715,133.27,133.24,0.05767897]
[1765159830053,3.42282715,133.27,133.24,0.05767897]
[1765159830962,0.05282715,133.27,133.24,10.01157897]
[1765159831161,0.05282715,133.27,133.25,3.2]
[1765159831955,0.05282715,133.27,133.25,9.9534]
[1765159832355,0.05282715,133.27,133.26,3.2]
[1765159832655,0.05282715,133.27,133.25,9.9534]
[1765159833561,0.05282715,133.27,133.24,3.25767897]
[1765159834153,0.05282715,133.27,133.26,3.2]
[1765159834356,3.37,133.33,133.26,3.2]
[1765159834663,9.12197096,133.32,133.26,3.2]
[1765159834851,3.37,133.32,133.26,3.2]
[1765159835361,3.37,133.32,133.26,9.9528]
[1765159835560,0.05181009,133.3,133.28,0.04923272]
[1765159836557,0.05181009,133.3,133.28,3.24923272]
[1765159837359,0.05181009,133.3,133.29,3.2]
[1765159839258,0.05181009,133.3,133.28,0.04923272]
[1765159839652,0.05181009,133.3,133.28,3.24923272]
[1765159841163,3.42181009,133.3,133.28,0.04923272]
[1765159845563,3.37,133.29,133.22,9.9549]
[1765159846558,3.37,133.26,133.24,0.05134941]
[1765159858576,3.37,133.26,133.24,3.25134941]
[1765159860182,3.37,133.26,133.24,0.05134941]
[1765159863380,0.05072026,133.27,133.24,3.25134941]
[1765159863579,0.05072026,133.27,133.24,6.403931]
[1765159863779,0.05072026,133.27,133.25,3.2]
[1765159864485,0.05072026,133.27,133.25,9.9535]
[1765159864684,0.05072026,133.27,133.26,3.2]
[1765159866784,10.24078388,133.34,133.27,3.2]
[1765159867081,104.9667,133.37,133.27,3.2]
[1765159867082,5.76756434,133.33,133.31,3.2]
[1765159867382,3.35,133.35,133.31,3.2]
[1765159867677,3.35,133.33,133.26,6.35258159]
[1765159867873,3.35,133.33,133.27,3.2]
[1765159868074,3.35,133.33,133.26,3.15258159]
[1765159868075,0.04985546,133.31,133.28,3.25185393]
[1765159868475,0.04985546,133.31,133.28,10.00365393]
[1765159869071,0.04985546,133.31,133.29,3.2]
[1765159870189,3.35,133.38,133.33,3.2]
[1765159870385,3.35,133.4,133.36,3.2]
[1765159870679,5.75760229,133.39,133.36,3.2]
[1765159870983,16.98558388,133.43,133.37,6.35258159]
[1765159871190,3.40326906,133.41,133.39,0.04923366]
[1765159872182,0.05326906,133.41,133.39,3.24923366]
[1765159872389,0.05326906,133.41,133.39,0.04923366]
[1765159873178,3.40326906,133.41,133.39,0.04923366]
[1765159876489,3.40326906,133.41,133.35,64.44]
[1765159876785,3.40326906,133.41,133.36,3.2]
[1765159877282,0.05326906,133.41,133.36,3.2]
[1765159877482,0.05326906,133.41,133.38,3.2]
[1765159877684,0.05326906,133.41,133.39,3.2]
[1765159878490,0.05326906,133.41,133.39,9.9462]
[1765159878686,0.05326906,133.41,133.4,3.14]
[1765159878879,3.41,133.46,133.4,3.14]
[1765159879277,3.41,133.46,133.4,9.8858]
[1765159879481,3.41,133.45,133.4,9.8858]
[1765159879788,3.41,133.45,133.41,0.0553869]
[1765159880089,3.46658445,133.44,133.41,0.0553869]
[1765159882688,3.46658445,133.44,133.41,3.1953869]
[1765159883496,0.05658445,133.44,133.41,3.1953869]
[1765159884097,0.05658445,133.44,133.41,9.9406869]
[1765159884291,0.05658445,133.44,133.42,3.14]
[1765159887600,0.05658445,133.44,133.43,3.14]
[1765159887793,3.41,133.5,133.44,3.14]
[1765159888000,3.41,133.5,133.45,3.14]
[1765159888692,0.0536877,133.49,133.47,3.14]
[1765159888889,3.41,133.54,133.47,3.14]
[1765159889102,3.45915149,133.52,133.47,3.19613442]
[1765159889297,0.04915149,133.52,133.48,3.19563373]
[1765159889500,0.04915149,133.52,133.49,3.14]
[1765159889701,3.45915149,133.52,133.48,67.57563373]
[1765159889894,3.45915149,133.52,133.49,3.14]
[1765159890092,0.04915149,133.52,133.49,3.14]
[1765159891603,0.04915149,133.52,133.48,169.30663373]
[1765159891604,3.45915149,133.52,133.48,64.43563373]
[1765159891906,3.45915149,133.52,133.48,67.57563373]
[1765159892104,3.45915149,133.52,133.49,3.14]
[1765159892305,0.04915149,133.52,133.49,3.14]
[1765159893003,3.45915149,133.52,133.48,3.19563373]
[1765159893200,3.45915149,133.52,133.48,0.05563373]
[1765159894307,3.45915149,133.52,133.48,3.19563373]
[1765159895509,3.45915149,133.52,133.48,9.93733373]
[1765159896210,3.45915149,133.52,133.49,3.14]
[1765159899310,3.45915149,133.52,133.48,0.05563373]
[1765159900908,3.41,133.51,133.48,0.05563373]
[1765159901104,3.41,133.5,133.4,108.0782]
[1765159901407,3.41,133.5,133.41,3.14]
[1765159901602,3.41,133.47,133.42,6.7447]
[1765159901807,3.41,133.47,133.4,64.36]
[1765159902203,3.41,133.44,133.42,0.05375249]
[1765159902912,0.05420785,133.45,133.42,3.19375249]
[1765159903805,0.05420785,133.45,133.44,9.884]
[1765159905906,3.41,133.5,133.46,3.14]
[1765159906710,3.41,133.5,133.46,9.8826]
[1765159906907,3.46511358,133.49,133.47,0.04845669]
[1765159909304,3.17,133.48,133.42,6.7448]
[1765159909909,3.17,133.48,133.42,9.8648]
[1765159910315,3.17,133.48,133.44,0.05690129]
[1765159912618,3.17,133.46,133.44,0.05690129]
[1765159920817,8.92186383,133.45,133.44,0.05690129]
[1765159923319,3.17,133.45,133.44,0.05690129]
[1765159925522,0.05659454,133.46,133.44,0.05690129]
[1765159925722,3.22659454,133.46,133.44,0.05690129]
[1765159928929,3.17,133.44,133.4,2.01129856]
[1765159929230,3.17,133.44,133.38,11.87809856]
[1765159929436,3.17,133.43,133.38,11.87809856]
[1765159929936,3.22149044,133.42,133.39,3.16750876]
[1765159931931,3.09,133.41,133.39,0.04750876]
[1765159941333,0.05149044,133.42,133.4,3.25]
[1765159941541,3.23149044,133.42,133.39,2.05880732]
[1765159941840,0.05149044,133.42,133.4,3.25]
[1765159942030,3.23149044,133.42,133.39,5.30880732]
[1765159942234,3.23149044,133.42,133.39,2.05880732]
[1765159945241,3.23149044,133.42,133.39,12.05510732]
[1765159947940,0.05149044,133.42,133.4,3.25]
[1765159948143,0.05149044,133.42,133.41,5.26129856]
[1765159948443,0.05149044,133.42,133.41,2.01129856]
[1765159950643,3.23149044,133.42,133.41,2.01129856]
[1765159951639,3.23149044,133.42,133.41,5.26129856]
[1765159951640,0.05149044,133.42,133.41,5.26129856]
[1765159953148,3.18,133.46,133.43,3.25]
[1765159953646,3.18,133.46,133.43,5.26129856]
[1765159953842,8.75319856,133.49,133.44,3.25]
[1765159953843,3.18,133.48,133.44,3.25]
[1765159954042,0.04732407,133.47,133.45,0.04808644]
[1765159954238,3.22732407,133.47,133.45,0.04808644]
[1765159954542,0.04732407,133.47,133.46,3.25]
[1765159954736,3.22732407,133.47,133.45,2.059385]
[1765159954940,3.22732407,133.47,133.45,0.04808644]